[Event "Live Chess"]
[Site "Chess.com"]
[Date "2024.06.01"]
[Round "-"]
[White "dl_chess"]
[Black "lyricalschemes"]
[Result "0-1"]
[WhiteElo "1163"]
[BlackElo "2196"]
[TimeControl "300"]
[EndTime "10:16:18 PDT"]
[Termination "lyricalschemes won by resignation"]

1. e4 {[%clk 0:04:51.3]} 1... Nf6 {[%clk 0:04:58.8]} 2. Nc3 {[%clk 0:04:46.1]}
2... e5 {[%clk 0:04:57.6]} 3. f4 {[%clk 0:04:40.1]} 3... d5 {[%clk 0:04:56.4]}
4. fxe5 {[%clk 0:04:37.8]} 4... Nxe4 {[%clk 0:04:53.2]} 5. Qf3 {[%clk
0:04:36.3]} 5... Nc6 {[%clk 0:04:51.7]} 6. Nxe4 {[%clk 0:04:22.6]} 6... Nd4
{[%clk 0:04:50.5]} 7. Qc3 {[%clk 0:04:21.3]} 7... dxe4 {[%clk 0:04:41.4]} 8. Ne2
{[%clk 0:03:57]} 8... Nc6 {[%clk 0:04:33]} 9. Ng3 {[%clk 0:03:25.9]} 9... Qh4
{[%clk 0:04:09.7]} 10. Bc4 {[%clk 0:03:02.8]} 10... Bc5 {[%clk 0:04:05.4]} 11.
Bxf7+ {[%clk 0:02:53.5]} 11... Kxf7 {[%clk 0:04:01]} 12. Qxc5 {[%clk 0:02:52.4]}
12... Re8 {[%clk 0:03:52]} 13. O-O+ {[%clk 0:02:49]} 13... Kg8 {[%clk
0:03:50.8]} 14. d3 {[%clk 0:02:00.1]} 14... exd3 {[%clk 0:03:47]} 15. cxd3
{[%clk 0:01:56.2]} 15... Qd4+ {[%clk 0:03:43]} 16. Qxd4 {[%clk 0:01:34.4]} 16...
Nxd4 {[%clk 0:03:42.9]} 17. Bf4 {[%clk 0:01:24.5]} 17... Bg4 {[%clk 0:03:38.1]}
18. Rac1 {[%clk 0:01:17.4]} 18... c6 {[%clk 0:03:36.4]} 19. h3 {[%clk
0:01:10.6]} 19... Be6 {[%clk 0:03:29.4]} 20. Ne4 {[%clk 0:00:57.8]} 20... Ne2+
{[%clk 0:03:27.4]} 21. Kh1 {[%clk 0:00:53.8]} 21... Nxc1 {[%clk 0:03:26.4]} 22.
Rd1 {[%clk 0:00:52.9]} 22... Ne2 {[%clk 0:03:24.8]} 23. Bh2 {[%clk 0:00:47.2]}
23... Bd5 {[%clk 0:03:22.6]} 24. Re1 {[%clk 0:00:40.6]} 24... Nd4 {[%clk
0:03:20.9]} 25. Nc3 {[%clk 0:00:37.4]} 25... Re6 {[%clk 0:03:14.1]} 26. Nxd5
{[%clk 0:00:24]} 26... cxd5 {[%clk 0:03:14]} 27. Rc1 {[%clk 0:00:16.4]} 27...
Rf8 {[%clk 0:03:10.3]} 28. Kg1 {[%clk 0:00:13.9]} 28... Ne2+ {[%clk 0:03:07.9]}
0-1

[Event "Live Chess"]
[Site "Chess.com"]
[Date "2024.06.01"]
[Round "-"]
[White "gmnorfolk"]
[Black "Dhaydon19"]
[Result "1-0"]
[WhiteElo "2146"]
[BlackElo "2688"]
[TimeControl "300"]
[EndTime "10:16:21 PDT"]
[Termination "gmnorfolk won by checkmate"]

1. c4 {[%clk 0:04:56.7]} 1... c6 {[%clk 0:04:59.7]} 2. Nf3 {[%clk 0:04:54.1]}
2... d5 {[%clk 0:04:59.4]} 3. e3 {[%clk 0:04:52.2]} 3... Nf6 {[%clk 0:04:58.3]}
4. Qc2 {[%clk 0:04:51.3]} 4... g6 {[%clk 0:04:57.4]} 5. b3 {[%clk 0:04:40.5]}
5... Bg7 {[%clk 0:04:56.4]} 6. Bb2 {[%clk 0:04:40]} 6... O-O {[%clk 0:04:56.1]}
7. Nc3 {[%clk 0:04:38.7]} 7... Bf5 {[%clk 0:04:55.3]} 8. d3 {[%clk 0:04:37.2]}
8... Nbd7 {[%clk 0:04:53]} 9. Be2 {[%clk 0:04:36]} 9... Nb6 {[%clk 0:04:51]} 10.
h3 {[%clk 0:04:33.1]} 10... dxc4 {[%clk 0:04:50.1]} 11. e4 {[%clk 0:04:15.1]}
11... cxd3 {[%clk 0:04:48.1]} 12. Bxd3 {[%clk 0:04:14.3]} 12... Be6 {[%clk
0:04:47.3]} 13. O-O-O {[%clk 0:04:13.5]} 13... Qc7 {[%clk 0:04:46.1]} 14. h4
{[%clk 0:04:07.5]} 14... Bg4 {[%clk 0:04:43.7]} 15. Rde1 {[%clk 0:04:00.7]}
15... Bxf3 {[%clk 0:04:40.7]} 16. gxf3 {[%clk 0:03:59.6]} 16... Nh5 {[%clk
0:04:40.4]} 17. f4 {[%clk 0:03:54.3]} 17... Qxf4+ {[%clk 0:04:37.9]} 18. Kb1
{[%clk 0:03:53.9]} 18... Rad8 {[%clk 0:04:36.8]} 19. e5 {[%clk 0:03:50.3]} 19...
Nd5 {[%clk 0:04:27.9]} 20. Nxd5 {[%clk 0:03:38.1]} 20... cxd5 {[%clk 0:04:26.8]}
21. Rhg1 {[%clk 0:03:31.3]} 21... Rc8 {[%clk 0:04:16.8]} 22. Qe2 {[%clk
0:03:29.7]} 22... Qxh4 {[%clk 0:04:04.2]} 23. Rh1 {[%clk 0:03:16.1]} 23... Qb4
{[%clk 0:03:59.7]} 24. Rxh5 {[%clk 0:02:51.9]} 24... gxh5 {[%clk 0:03:58.7]} 25.
Rg1 {[%clk 0:02:39.2]} 25... Qh4 {[%clk 0:03:52.2]} 26. e6 {[%clk 0:02:11]}
26... f6 {[%clk 0:03:47.3]} 27. Qf3 {[%clk 0:02:05.6]} 27... Qh2 {[%clk
0:03:02.4]} 28. Rh1 {[%clk 0:01:44.4]} 28... Qc7 {[%clk 0:02:53.1]} 29. Bxh7+
{[%clk 0:01:33.5]} 29... Kh8 {[%clk 0:02:49.8]} 30. Qxh5 {[%clk 0:01:23.4]}
30... Qf4 {[%clk 0:02:47.8]} 31. Bf5+ {[%clk 0:00:31.2]} 31... Bh6 {[%clk
0:02:45.5]} 32. Qg6 {[%clk 0:00:13.7]} 32... Qxf5+ {[%clk 0:02:41.3]} 33. Qxf5
{[%clk 0:00:11.3]} 33... Kg7 {[%clk 0:02:40.9]} 34. Rg1+ {[%clk 0:00:05.1]}
34... Bg5 {[%clk 0:02:32.2]} 35. Rxg5+ {[%clk 0:00:03.3]} 35... Kh8 {[%clk
0:02:32]} 36. Rh5+ {[%clk 0:00:01.6]} 36... Kg8 {[%clk 0:02:31.8]} 37. Qg6#
{[%clk 0:00:00.7]} 1-0

[Event "Live Chess"]
[Site "Chess.com"]
[Date "2024.06.01"]
[Round "-"]
[White "Tatarinov_Maxim"]
[Black "Grace6363"]
[Result "1-0"]
[WhiteElo "2282"]
[BlackElo "1121"]
[TimeControl "300"]
[EndTime "10:16:25 PDT"]
[Termination "Tatarinov_Maxim won by resignation"]

1. Nf3 {[%clk 0:04:57]} 1... c5 {[%clk 0:04:57.4]} 2. g3 {[%clk 0:04:55.8]} 2...
Nc6 {[%clk 0:04:56.3]} 3. Bg2 {[%clk 0:04:54.3]} 3... e6 {[%clk 0:04:55.4]} 4.
O-O {[%clk 0:04:53]} 4... Nf6 {[%clk 0:04:53.1]} 5. c4 {[%clk 0:04:49.8]} 5...
b6 {[%clk 0:04:49.1]} 6. d4 {[%clk 0:04:49]} 6... Bb7 {[%clk 0:04:43.5]} 7. d5
{[%clk 0:04:46.5]} 7... Na5 {[%clk 0:04:35.1]} 8. dxe6 {[%clk 0:03:59.8]} 8...
dxe6 {[%clk 0:04:29.3]} 9. Qc2 {[%clk 0:03:50]} 9... Qc7 {[%clk 0:04:07.7]} 10.
Bf4 {[%clk 0:03:44.9]} 10... Bd6 {[%clk 0:04:01.4]} 11. Bxd6 {[%clk 0:03:40.9]}
11... Qxd6 {[%clk 0:04:00.1]} 12. Rd1 {[%clk 0:03:39.5]} 12... Qc7 {[%clk
0:03:59]} 13. Nc3 {[%clk 0:03:34.8]} 13... a6 {[%clk 0:03:50.4]} 14. b3 {[%clk
0:03:31.2]} 14... Nc6 {[%clk 0:03:46.8]} 15. Rd2 {[%clk 0:03:22.9]} 15... Nb4
{[%clk 0:03:44.1]} 16. Qb2 {[%clk 0:03:20]} 16... O-O {[%clk 0:03:35.2]} 17.
Rad1 {[%clk 0:03:17.5]} 17... Rad8 {[%clk 0:03:33.5]} 18. Rxd8 {[%clk
0:02:49.2]} 18... Rxd8 {[%clk 0:03:32]} 19. Rxd8+ {[%clk 0:02:49.1]} 19... Qxd8
{[%clk 0:03:31.1]} 20. Qd2 {[%clk 0:02:47.2]} 20... Qxd2 {[%clk 0:03:27.6]} 21.
Nxd2 {[%clk 0:02:47.1]} 21... Bxg2 {[%clk 0:03:26.9]} 22. Kxg2 {[%clk
0:02:46.9]} 22... Nc6 {[%clk 0:03:12.8]} 23. e3 {[%clk 0:02:42.7]} 23... h5
{[%clk 0:03:06.9]} 24. Kf3 {[%clk 0:02:41.7]} 24... g6 {[%clk 0:03:04.8]} 25. h3
{[%clk 0:02:40.3]} 25... Ne5+ {[%clk 0:03:01.7]} 26. Ke2 {[%clk 0:02:38.2]}
26... g5 {[%clk 0:02:56.6]} 27. f4 {[%clk 0:02:31.1]} 27... gxf4 {[%clk
0:02:49.1]} 28. exf4 {[%clk 0:02:31]} 28... Ng6 {[%clk 0:02:43.6]} 29. Ke3
{[%clk 0:02:17.1]} 29... Ne7 {[%clk 0:02:42.2]} 30. Na4 {[%clk 0:02:09.5]} 30...
b5 {[%clk 0:02:40.3]} 31. Nxc5 {[%clk 0:02:06.8]} 31... bxc4 {[%clk 0:02:37.2]}
32. Nxc4 {[%clk 0:02:06.7]} 32... Nfd5+ {[%clk 0:02:31.3]} 33. Kf3 {[%clk
0:01:59.6]} 33... Nc3 {[%clk 0:02:09]} 34. a3 {[%clk 0:01:50.3]} 34... Nf5
{[%clk 0:01:54.8]} 35. b4 {[%clk 0:01:40.6]} 35... Nd4+ {[%clk 0:01:48.3]} 36.
Ke3 {[%clk 0:01:37.3]} 36... Nf5+ {[%clk 0:01:39.5]} 37. Kd3 {[%clk 0:01:36.1]}
37... Nd5 {[%clk 0:01:25.1]} 38. g4 {[%clk 0:01:26.1]} 38... Nxf4+ {[%clk
0:01:21.7]} 39. Ke4 {[%clk 0:01:24.7]} 39... Nxh3 {[%clk 0:01:13.1]} 40. gxf5
{[%clk 0:01:22.7]} 40... exf5+ {[%clk 0:01:09.6]} 41. Kxf5 {[%clk 0:01:22.6]}
41... Nf2 {[%clk 0:01:07.5]} 42. Nxa6 {[%clk 0:01:18.7]} 42... h4 {[%clk
0:01:06]} 43. Kf4 {[%clk 0:01:16.8]} 43... h3 {[%clk 0:01:05.1]} 44. Kg3 {[%clk
0:01:16]} 44... Ne4+ {[%clk 0:00:55.3]} 45. Kxh3 {[%clk 0:01:14.1]} 45... Nc3
{[%clk 0:00:52.6]} 46. Nc5 {[%clk 0:01:07.5]} 46... Nb5 {[%clk 0:00:43]} 47. a4
{[%clk 0:01:05.8]} 47... Nd4 {[%clk 0:00:35.7]} 48. a5 {[%clk 0:01:02.8]} 48...
Kf8 {[%clk 0:00:28.5]} 49. a6 {[%clk 0:01:01.3]} 49... Nc6 {[%clk 0:00:26.3]}
50. b5 {[%clk 0:00:59.5]} 50... Na7 {[%clk 0:00:21.9]} 51. b6 {[%clk 0:00:58.4]}
51... Nc6 {[%clk 0:00:17.8]} 52. a7 {[%clk 0:00:56.5]} 1-0

[Event "Live Chess"]
[Site "Chess.com"]
[Date "2024.06.01"]
[Round "-"]
[White "degringolade64"]
[Black "GEMdzq"]
[Result "1-0"]
[WhiteElo "2072"]
[BlackElo "2331"]
[TimeControl "300"]
[EndTime "10:16:38 PDT"]
[Termination "degringolade64 won by resignation"]

1. e4 {[%clk 0:04:56.2]} 1... Nf6 {[%clk 0:04:58]} 2. e5 {[%clk 0:04:54.5]} 2...
Nd5 {[%clk 0:04:56.2]} 3. d4 {[%clk 0:04:54.1]} 3... d6 {[%clk 0:04:55.3]} 4. c4
{[%clk 0:04:52.9]} 4... Nb6 {[%clk 0:04:53.4]} 5. f4 {[%clk 0:04:52.4]} 5... g6
{[%clk 0:04:52.3]} 6. Nc3 {[%clk 0:04:36.4]} 6... Bg7 {[%clk 0:04:47.5]} 7. Be3
{[%clk 0:04:34.4]} 7... dxe5 {[%clk 0:04:42.9]} 8. dxe5 {[%clk 0:04:33.2]} 8...
O-O {[%clk 0:04:41.8]} 9. Qxd8 {[%clk 0:04:20.9]} 9... Rxd8 {[%clk 0:04:40.6]}
10. c5 {[%clk 0:04:15.1]} 10... Nd5 {[%clk 0:04:34.8]} 11. Nxd5 {[%clk 0:04:13]}
11... Rxd5 {[%clk 0:04:33.3]} 12. Bc4 {[%clk 0:04:12.5]} 12... Rd8 {[%clk
0:04:32.3]} 13. Nf3 {[%clk 0:04:07.4]} 13... h6 {[%clk 0:04:21.5]} 14. O-O
{[%clk 0:03:57.4]} 14... Nc6 {[%clk 0:04:20.3]} 15. Rad1 {[%clk 0:03:48.4]}
15... Be6 {[%clk 0:04:09.7]} 16. Bxe6 {[%clk 0:03:44.4]} 16... fxe6 {[%clk
0:04:09.6]} 17. h4 {[%clk 0:03:23.5]} 17... Rd5 {[%clk 0:04:00.8]} 18. Rxd5
{[%clk 0:03:08.7]} 18... exd5 {[%clk 0:04:00.7]} 19. Rd1 {[%clk 0:03:03]} 19...
e6 {[%clk 0:03:55.6]} 20. a3 {[%clk 0:02:57.9]} 20... a5 {[%clk 0:03:54.1]} 21.
Nd4 {[%clk 0:02:55.9]} 21... Nxd4 {[%clk 0:03:51.6]} 22. Rxd4 {[%clk 0:02:53.3]}
22... Bf8 {[%clk 0:03:40.3]} 23. Ra4 {[%clk 0:02:48.3]} 23... Ra6 {[%clk
0:03:30.1]} 24. b4 {[%clk 0:02:36.6]} 24... axb4 {[%clk 0:03:29.1]} 25. Rxa6
{[%clk 0:02:35.2]} 25... bxa6 {[%clk 0:03:29]} 26. axb4 {[%clk 0:02:34.2]} 26...
Kf7 {[%clk 0:03:25.4]} 27. Kf2 {[%clk 0:02:31.9]} 27... Ke8 {[%clk 0:03:24.6]}
28. Ke2 {[%clk 0:02:26.4]} 28... Kd7 {[%clk 0:03:23.9]} 29. Kd3 {[%clk
0:02:25.4]} 29... Kc6 {[%clk 0:03:22.2]} 30. Kc3 {[%clk 0:02:21.8]} 30... Kb5
{[%clk 0:03:21.2]} 31. g4 {[%clk 0:02:17.4]} 31... Be7 {[%clk 0:03:18.8]} 32. h5
{[%clk 0:02:14.3]} 32... gxh5 {[%clk 0:03:17.6]} 33. gxh5 {[%clk 0:02:13.6]}
33... Bf8 {[%clk 0:03:14.1]} 34. Bd2 {[%clk 0:02:02.1]} 34... a5 {[%clk
0:03:04.2]} 35. bxa5 {[%clk 0:02:00.7]} 35... Bxc5 {[%clk 0:03:02.1]} 36. Kd3
{[%clk 0:01:53.3]} 36... Bf8 {[%clk 0:02:56.7]} 37. f5 {[%clk 0:01:48.7]} 37...
exf5 {[%clk 0:02:55.4]} 38. Kd4 {[%clk 0:01:48]} 38... Kc6 {[%clk 0:02:44.6]}
39. a6 {[%clk 0:01:45.4]} 39... Bc5+ {[%clk 0:02:38.9]} 40. Kc3 {[%clk
0:01:42.8]} 40... Bf8 {[%clk 0:02:23.9]} 41. Be3 {[%clk 0:01:38.1]} 41... f4
{[%clk 0:01:58.3]} 42. Bxf4 {[%clk 0:01:34.8]} 42... Kb6 {[%clk 0:01:57.6]} 43.
Kd4 {[%clk 0:01:32.3]} 43... c6 {[%clk 0:01:56.9]} 44. e6 {[%clk 0:01:28.3]}
44... Bg7+ {[%clk 0:01:48.1]} 45. Kd3 {[%clk 0:01:20.3]} 45... c5 {[%clk
0:01:37.8]} 46. e7 {[%clk 0:01:18.5]} 46... c4+ {[%clk 0:01:35.9]} 47. Kc2
{[%clk 0:01:16.8]} 47... d4 {[%clk 0:01:33.3]} 48. e8=Q {[%clk 0:01:13.1]} 48...
d3+ {[%clk 0:01:32.9]} 49. Kd1 {[%clk 0:01:11]} 49... c3 {[%clk 0:01:26.3]} 50.
Qe3+ {[%clk 0:01:08.9]} 50... Kxa6 {[%clk 0:01:24.3]} 51. Qxd3+ {[%clk
0:01:08.2]} 51... Kb6 {[%clk 0:01:23.4]} 52. Qg6+ {[%clk 0:01:04.1]} 1-0

[Event "Live Chess"]
[Site "Chess.com"]
[Date "2024.06.01"]
[Round "-"]
[White "vincents82"]
[Black "f4nomore"]
[Result "1-0"]
[WhiteElo "2145"]
[BlackElo "1193"]
[TimeControl "300"]
[EndTime "10:16:39 PDT"]
[Termination "vincents82 won on time"]

1. e4 {[%clk 0:04:55.4]} 1... g6 {[%clk 0:04:58.3]} 2. d4 {[%clk 0:04:48.9]}
2... Bg7 {[%clk 0:04:52]} 3. Nc3 {[%clk 0:04:47.6]} 3... d6 {[%clk 0:04:50.8]}
4. Be3 {[%clk 0:04:46.5]} 4... Nf6 {[%clk 0:04:48.8]} 5. f3 {[%clk 0:04:44.7]}
5... O-O {[%clk 0:04:46.3]} 6. Qd2 {[%clk 0:04:44.1]} 6... Nbd7 {[%clk
0:04:43.9]} 7. Bh6 {[%clk 0:04:42.9]} 7... c5 {[%clk 0:04:42.6]} 8. Nge2 {[%clk
0:04:40.9]} 8... cxd4 {[%clk 0:04:40.4]} 9. Nxd4 {[%clk 0:04:39.9]} 9... Nc5
{[%clk 0:04:36.6]} 10. h4 {[%clk 0:04:38.6]} 10... Qb6 {[%clk 0:04:20.9]} 11.
O-O-O {[%clk 0:04:35.5]} 11... e5 {[%clk 0:04:12.8]} 12. Nb3 {[%clk 0:04:22.5]}
12... Nxb3+ {[%clk 0:04:04.7]} 13. axb3 {[%clk 0:04:14.1]} 13... Be6 {[%clk
0:03:56.2]} 14. Bxg7 {[%clk 0:04:08.2]} 14... Kxg7 {[%clk 0:03:54.4]} 15. Qxd6
{[%clk 0:04:06.8]} 15... Qe3+ {[%clk 0:03:37.7]} 16. Qd2 {[%clk 0:04:04.3]}
16... Qb6 {[%clk 0:03:35.2]} 17. g4 {[%clk 0:03:59.9]} 17... Rac8 {[%clk
0:03:31.9]} 18. h5 {[%clk 0:03:58]} 18... Qa5 {[%clk 0:03:21.5]} 19. Kb1 {[%clk
0:03:56.4]} 19... Rfd8 {[%clk 0:03:06.8]} 20. Bd3 {[%clk 0:03:55.3]} 20... Rd4
{[%clk 0:02:31]} 21. h6+ {[%clk 0:03:32.7]} 21... Kf8 {[%clk 0:02:12.9]} 22. Na4
{[%clk 0:03:29.4]} 22... Qxd2 {[%clk 0:01:45.6]} 23. Rxd2 {[%clk 0:03:27.9]}
23... Nd7 {[%clk 0:01:32.4]} 24. Rhd1 {[%clk 0:03:23.9]} 24... b5 {[%clk
0:01:28.3]} 25. Bxb5 {[%clk 0:03:18.1]} 25... Rxd2 {[%clk 0:01:20.1]} 26. Rxd2
{[%clk 0:03:17]} 26... Nb6 {[%clk 0:01:18.7]} 27. Nxb6 {[%clk 0:03:14.9]} 27...
axb6 {[%clk 0:01:17.1]} 28. c4 {[%clk 0:03:05.9]} 28... Ke7 {[%clk 0:01:06.8]}
29. Kc2 {[%clk 0:03:04.2]} 29... f6 {[%clk 0:01:04.4]} 30. Kc3 {[%clk
0:03:02.5]} 30... f5 {[%clk 0:01:00.2]} 31. gxf5 {[%clk 0:02:54]} 31... gxf5
{[%clk 0:00:58.2]} 32. Rg2 {[%clk 0:02:52.2]} 32... fxe4 {[%clk 0:00:51.3]} 33.
fxe4 {[%clk 0:02:48.3]} 33... Kf6 {[%clk 0:00:46.8]} 34. b4 {[%clk 0:02:43.7]}
34... Bf7 {[%clk 0:00:24.8]} 35. b3 {[%clk 0:02:39]} 35... Bg6 {[%clk
0:00:23.4]} 36. Rf2+ {[%clk 0:02:36.9]} 36... Kg5 {[%clk 0:00:19.8]} 37. Rh2
{[%clk 0:02:26.3]} 37... Rf8 {[%clk 0:00:16.7]} 38. c5 {[%clk 0:02:19.9]} 38...
bxc5 {[%clk 0:00:14.3]} 39. bxc5 {[%clk 0:02:18.8]} 39... Rf3+ {[%clk
0:00:11.6]} 40. Bd3 {[%clk 0:02:17]} 40... Bxe4 {[%clk 0:00:06.9]} 41. Rd2
{[%clk 0:02:15.2]} 41... Bc6 {[%clk 0:00:03.9]} 42. Re2 {[%clk 0:02:11.6]} 42...
Kf6 {[%clk 0:00:01.5]} 43. b4 {[%clk 0:02:10.1]} 1-0

[Event "Live Chess"]
[Site "Chess.com"]
[Date "2024.06.01"]
[Round "-"]
[White "Queensandpawns"]
[Black "GwaryTek"]
[Result "1-0"]
[WhiteElo "2475"]
[BlackElo "1894"]
[TimeControl "300"]
[EndTime "10:16:46 PDT"]
[Termination "Queensandpawns won on time"]

1. e4 {[%clk 0:04:59.2]} 1... Nf6 {[%clk 0:04:56.2]} 2. d4 {[%clk 0:04:59.1]}
2... Nxe4 {[%clk 0:04:54.2]} 3. Bc4 {[%clk 0:04:58.5]} 3... Nf6 {[%clk
0:04:54.1]} 4. Nf3 {[%clk 0:04:57.2]} 4... d5 {[%clk 0:04:53.9]} 5. Bd3 {[%clk
0:04:56.2]} 5... Bg4 {[%clk 0:04:52.1]} 6. O-O {[%clk 0:04:54.6]} 6... e6 {[%clk
0:04:50.2]} 7. Nbd2 {[%clk 0:04:53.5]} 7... c5 {[%clk 0:04:48.7]} 8. h3 {[%clk
0:04:52.8]} 8... Bh5 {[%clk 0:04:47.2]} 9. g4 {[%clk 0:04:51.5]} 9... Bg6 {[%clk
0:04:46.1]} 10. dxc5 {[%clk 0:04:51.1]} 10... Bxc5 {[%clk 0:04:44.1]} 11. Ne5
{[%clk 0:04:50.4]} 11... Nc6 {[%clk 0:04:41.2]} 12. Nxg6 {[%clk 0:04:43.8]}
12... hxg6 {[%clk 0:04:38.8]} 13. Qf3 {[%clk 0:04:43.3]} 13... Ne5 {[%clk
0:04:00.6]} 14. Bb5+ {[%clk 0:04:39.5]} 14... Ke7 {[%clk 0:03:54.9]} 15. Qg3
{[%clk 0:04:36.3]} 15... Bd6 {[%clk 0:03:28.9]} 16. f4 {[%clk 0:04:35]} 16...
Qb6+ {[%clk 0:03:26.5]} 17. Kg2 {[%clk 0:04:29.8]} 17... Nexg4 {[%clk
0:03:09.1]} 18. hxg4 {[%clk 0:04:24.8]} 18... Qxb5 {[%clk 0:03:07.6]} 19. Re1
{[%clk 0:04:00.2]} 19... g5 {[%clk 0:02:41.9]} 20. Nb3 {[%clk 0:03:53.5]} 20...
Rac8 {[%clk 0:02:29.8]} 21. Nd4 {[%clk 0:03:49.3]} 21... Qa4 {[%clk 0:02:15.6]}
22. Nf5+ {[%clk 0:03:48]} 22... Kd7 {[%clk 0:02:03.5]} 23. Nxd6 {[%clk
0:03:45.1]} 23... Rxc2+ {[%clk 0:01:53]} 24. Kg1 {[%clk 0:03:44.2]} 24... Kxd6
{[%clk 0:00:12.1]} 25. fxg5+ {[%clk 0:03:42.5]} 25... Kd7 {[%clk 0:00:11]} 26.
gxf6 {[%clk 0:03:35.6]} 26... gxf6 {[%clk 0:00:10.9]} 27. Be3 {[%clk 0:03:30.3]}
27... Rg8 {[%clk 0:00:05.9]} 28. Bf4 {[%clk 0:03:27.8]} 28... Rc4 {[%clk
0:00:03]} 29. b3 {[%clk 0:03:25.4]} 1-0

[Event "Live Chess"]
[Site "Chess.com"]
[Date "2024.06.01"]
[Round "-"]
[White "ACM42"]
[Black "Bazzza132"]
[Result "1/2-1/2"]
[WhiteElo "2199"]
[BlackElo "1690"]
[TimeControl "300"]
[EndTime "10:16:49 PDT"]
[Termination "Game drawn by repetition"]

1. e4 {[%clk 0:04:57.7]} 1... e5 {[%clk 0:04:58.8]} 2. Nf3 {[%clk 0:04:57.1]}
2... Nc6 {[%clk 0:04:58.3]} 3. Bc4 {[%clk 0:04:56.1]} 3... Nf6 {[%clk
0:04:56.2]} 4. d4 {[%clk 0:04:53.8]} 4... exd4 {[%clk 0:04:50.2]} 5. e5 {[%clk
0:04:52.9]} 5... d5 {[%clk 0:04:48.6]} 6. Bb5 {[%clk 0:04:52.1]} 6... Ne4 {[%clk
0:04:38.4]} 7. Nxd4 {[%clk 0:04:51.1]} 7... Bd7 {[%clk 0:04:35.7]} 8. Bxc6
{[%clk 0:04:48.4]} 8... Bxc6 {[%clk 0:04:34.3]} 9. c3 {[%clk 0:04:47.9]} 9...
Bc5 {[%clk 0:04:30.4]} 10. O-O {[%clk 0:04:46.9]} 10... O-O {[%clk 0:04:27.2]}
11. f3 {[%clk 0:04:45.7]} 11... Bxd4+ {[%clk 0:04:04.5]} 12. cxd4 {[%clk
0:04:43.7]} 12... Bb5 {[%clk 0:03:54.4]} 13. fxe4 {[%clk 0:04:40.8]} 13... Bxf1
{[%clk 0:03:52.5]} 14. Qxf1 {[%clk 0:04:30.3]} 14... dxe4 {[%clk 0:03:50.8]} 15.
Be3 {[%clk 0:04:29.6]} 15... f5 {[%clk 0:03:42.9]} 16. exf6 {[%clk 0:04:22.4]}
16... Rxf6 {[%clk 0:03:40.3]} 17. Qc4+ {[%clk 0:04:21]} 17... Kh8 {[%clk
0:03:38.1]} 18. Nc3 {[%clk 0:04:19.4]} 18... Qe7 {[%clk 0:03:32.8]} 19. Rf1
{[%clk 0:04:15]} 19... Rxf1+ {[%clk 0:03:30.2]} 20. Kxf1 {[%clk 0:04:14]} 20...
Qf6+ {[%clk 0:03:23.6]} 21. Kg1 {[%clk 0:04:12.6]} 21... Qe7 {[%clk 0:03:17.4]}
22. Qd5 {[%clk 0:04:10.8]} 22... c6 {[%clk 0:03:11.1]} 23. Qe5 {[%clk
0:04:00.9]} 23... Qh4 {[%clk 0:02:59.8]} 24. g3 {[%clk 0:03:55.8]} 24... Qg4
{[%clk 0:02:50.9]} 25. Nxe4 {[%clk 0:03:35.5]} 25... Qe2 {[%clk 0:02:39.4]} 26.
Bf4 {[%clk 0:03:26.3]} 26... Qxb2 {[%clk 0:02:25.2]} 27. Ng5 {[%clk 0:03:24.6]}
27... Qb1+ {[%clk 0:02:18.1]} 28. Kg2 {[%clk 0:03:21.5]} 28... Qg6 {[%clk
0:02:12.1]} 29. h4 {[%clk 0:03:11.5]} 29... Re8 {[%clk 0:02:09.7]} 30. Qc7
{[%clk 0:02:45.9]} 30... Re2+ {[%clk 0:01:47.8]} 31. Kf3 {[%clk 0:02:38.4]}
31... Qd3+ {[%clk 0:01:41.9]} 32. Kg4 {[%clk 0:02:37.3]} 32... Re8 {[%clk
0:01:33]} 33. Be5 {[%clk 0:02:28.2]} 33... Qe2+ {[%clk 0:01:27.8]} 34. Nf3
{[%clk 0:02:14.6]} 34... Qe4+ {[%clk 0:01:15]} 35. Kh3 {[%clk 0:02:13.2]} 35...
Qf5+ {[%clk 0:01:01.5]} 36. Kg2 {[%clk 0:02:11.5]} 36... Qg6 {[%clk 0:00:51.6]}
37. h5 {[%clk 0:02:06.5]} 37... Qc2+ {[%clk 0:00:43.7]} 38. Kf1 {[%clk
0:02:03.8]} 38... Qd1+ {[%clk 0:00:39.1]} 39. Ne1 {[%clk 0:02:01.9]} 39... Rf8+
{[%clk 0:00:36.7]} 40. Kg2 {[%clk 0:01:57.5]} 40... Qe2+ {[%clk 0:00:34.6]} 41.
Kh3 {[%clk 0:01:51]} 41... Qxh5+ {[%clk 0:00:30.2]} 42. Kg2 {[%clk 0:01:49.9]}
42... Qe2+ {[%clk 0:00:25.5]} 43. Kh3 {[%clk 0:01:48.7]} 43... Qh5+ {[%clk
0:00:23.6]} 44. Kg2 {[%clk 0:01:47.2]} 44... Qe2+ {[%clk 0:00:22.1]} 45. Kh3
{[%clk 0:01:43.5]} 45... Qh5+ {[%clk 0:00:20.9]} 1/2-1/2

[Event "Live Chess"]
[Site "Chess.com"]
[Date "2024.06.01"]
[Round "-"]
[White "jimwad"]
[Black "PureDashingOctopus"]
[Result "0-1"]
[WhiteElo "1261"]
[BlackElo "2221"]
[TimeControl "300"]
[EndTime "10:16:51 PDT"]
[Termination "PureDashingOctopus won by resignation"]

1. d4 {[%clk 0:04:59]} 1... Nf6 {[%clk 0:04:56.9]} 2. c4 {[%clk 0:04:57.8]} 2...
g6 {[%clk 0:04:50]} 3. Nc3 {[%clk 0:04:56.2]} 3... d5 {[%clk 0:04:47]} 4. e3
{[%clk 0:04:53.9]} 4... Bg7 {[%clk 0:04:42.9]} 5. Nf3 {[%clk 0:04:52]} 5... O-O
{[%clk 0:04:40.9]} 6. Be2 {[%clk 0:04:49.8]} 6... dxc4 {[%clk 0:04:37]} 7. Bxc4
{[%clk 0:04:48.3]} 7... c5 {[%clk 0:04:36.1]} 8. O-O {[%clk 0:04:43.5]} 8... Nc6
{[%clk 0:04:32.8]} 9. dxc5 {[%clk 0:04:39.7]} 9... Qa5 {[%clk 0:04:27.9]} 10.
Bb3 {[%clk 0:04:24.2]} 10... Qxc5 {[%clk 0:04:21.3]} 11. Bd2 {[%clk 0:04:23]}
11... Bg4 {[%clk 0:04:14.9]} 12. Rc1 {[%clk 0:04:18.6]} 12... Qh5 {[%clk
0:04:11.5]} 13. Nd5 {[%clk 0:03:57.4]} 13... Nxd5 {[%clk 0:04:01.3]} 14. Bxd5
{[%clk 0:03:53.6]} 14... Qxd5 {[%clk 0:03:58.7]} 0-1

[Event "Live Chess"]
[Site "Chess.com"]
[Date "2024.06.01"]
[Round "-"]
[White "SebasASB"]
[Black "MaximKhimchenko"]
[Result "1-0"]
[WhiteElo "2157"]
[BlackElo "1782"]
[TimeControl "300"]
[EndTime "10:17:12 PDT"]
[Termination "SebasASB won by checkmate"]

1. g4 {[%clk 0:04:54.3]} 1... e5 {[%clk 0:04:49.3]} 2. Bg2 {[%clk 0:04:50.8]}
2... Ne7 {[%clk 0:04:48.7]} 3. c4 {[%clk 0:04:37.5]} 3... Ng6 {[%clk 0:04:47.3]}
4. Nc3 {[%clk 0:04:35.3]} 4... Nf4 {[%clk 0:04:44.3]} 5. Bf1 {[%clk 0:04:33.1]}
5... Qh4 {[%clk 0:04:41]} 6. Nf3 {[%clk 0:03:51.3]} 6... Qxg4 {[%clk 0:04:37]}
7. d4 {[%clk 0:03:50.1]} 7... exd4 {[%clk 0:04:26.1]} 8. Qxd4 {[%clk 0:03:44.5]}
8... Ng2+ {[%clk 0:04:18.8]} 9. Bxg2 {[%clk 0:03:34.9]} 9... Qxg2 {[%clk
0:04:18.7]} 10. Qe5+ {[%clk 0:03:32.6]} 10... Be7 {[%clk 0:04:13.9]} 11. Rg1
{[%clk 0:03:31.9]} 11... Qh3 {[%clk 0:03:58.5]} 12. Nd5 {[%clk 0:03:30.8]} 12...
Na6 {[%clk 0:03:46.5]} 13. Qxe7# {[%clk 0:03:25.5]} 1-0